[Event "*** SCC Grand Prix: Titled Tuesday Blitz"]
[Site "Chess.com"]
[Date "2020.09.08"]
[Round "4"]
[White "Jojo_1608"]
[Black "giantslayer83"]
[Result "0-1"]
[WhiteElo "2187"]
[BlackElo "2700"]
[TimeControl "180+1"]
[EndTime "10:41:52 PDT"]
[Termination "giantslayer83 won on time"]

1. d4 {[%clk 0:03:00.9]} 1... Nf6 {[%clk 0:02:59.6]} 2. c4 {[%clk 0:03:00.2]}
2... g6 {[%clk 0:02:59.5]} 3. Nc3 {[%clk 0:03:00.2]} 3... Bg7 {[%clk 0:03:00]}
4. Nf3 {[%clk 0:03:00.4]} 4... d6 {[%clk 0:03:00.5]} 5. Bg5 {[%clk 0:02:59.4]}
5... O-O {[%clk 0:03:00.9]} 6. e3 {[%clk 0:02:59.2]} 6... Nbd7 {[%clk
0:03:01.2]} 7. Be2 {[%clk 0:02:58.6]} 7... h6 {[%clk 0:02:59.4]} 8. Bh4 {[%clk
0:02:58.4]} 8... c6 {[%clk 0:02:58.2]} 9. Qc2 {[%clk 0:02:58]} 9... e5 {[%clk
0:02:55.1]} 10. Rd1 {[%clk 0:02:52.5]} 10... Qe7 {[%clk 0:02:54]} 11. O-O {[%clk
0:02:47.7]} 11... Re8 {[%clk 0:02:49.6]} 12. Rfe1 {[%clk 0:02:47.2]} 12... e4
{[%clk 0:02:36.4]} 13. Nd2 {[%clk 0:02:46.4]} 13... g5 {[%clk 0:02:35.7]} 14.
Bg3 {[%clk 0:02:45]} 14... Nf8 {[%clk 0:02:33.5]} 15. b4 {[%clk 0:02:25.8]}
15... Ng6 {[%clk 0:02:32.9]} 16. c5 {[%clk 0:02:23]} 16... d5 {[%clk 0:02:32.5]}
17. Bd6 {[%clk 0:02:13.3]} 17... Qe6 {[%clk 0:02:30.9]} 18. b5 {[%clk
0:02:10.6]} 18... Nh4 {[%clk 0:02:30.1]} 19. Rb1 {[%clk 0:02:00.7]} 19... Bf8
{[%clk 0:02:19.6]} 20. Be5 {[%clk 0:01:49.4]} 20... Ng6 {[%clk 0:02:17]} 21. Bg3
{[%clk 0:01:49]} 21... h5 {[%clk 0:02:16.6]} 22. h3 {[%clk 0:01:42]} 22... h4
{[%clk 0:02:16.3]} 23. Bh2 {[%clk 0:01:41.7]} 23... g4 {[%clk 0:02:16.3]} 24.
hxg4 {[%clk 0:01:39.6]} 24... Nxg4 {[%clk 0:02:17.2]} 25. Bxg4 {[%clk
0:01:30.7]} 25... Qxg4 {[%clk 0:02:18.1]} 26. Qd1 {[%clk 0:01:16.3]} 26... Qg5
{[%clk 0:02:17.2]} 27. f4 {[%clk 0:01:15]} 27... exf3 {[%clk 0:02:16]} 28. Nxf3
{[%clk 0:01:15]} 28... Qh6 {[%clk 0:02:14.8]} 29. Qd2 {[%clk 0:01:09.2]} 29...
h3 {[%clk 0:02:13.7]} 30. e4 {[%clk 0:01:08]} 30... Qh5 {[%clk 0:02:12.4]} 31.
Qg5 {[%clk 0:01:04.4]} 31... Qxg5 {[%clk 0:01:55.4]} 32. Nxg5 {[%clk 0:01:03.9]}
32... dxe4 {[%clk 0:01:56.3]} 33. Ncxe4 {[%clk 0:01:02.8]} 33... Bg7 {[%clk
0:01:56.6]} 34. Nf3 {[%clk 0:00:53.7]} 34... hxg2 {[%clk 0:01:55.7]} 35. Kxg2
{[%clk 0:00:53.3]} 35... Bf5 {[%clk 0:01:55.2]} 36. Nd6 {[%clk 0:00:44.2]} 36...
Bxb1 {[%clk 0:01:54]} 37. Nxe8 {[%clk 0:00:40.3]} 37... Bxa2 {[%clk 0:01:53.4]}
38. bxc6 {[%clk 0:00:37.6]} 38... bxc6 {[%clk 0:01:53.2]} 39. Nxg7 {[%clk
0:00:35.6]} 39... Kxg7 {[%clk 0:01:54.1]} 40. Ne5 {[%clk 0:00:33]} 40... Bd5+
{[%clk 0:01:53.6]} 41. Kg1 {[%clk 0:00:31.7]} 41... Nh4 {[%clk 0:01:52]} 42. Rf1
{[%clk 0:00:29.2]} 42... f6 {[%clk 0:01:51.2]} 43. Bg3 {[%clk 0:00:23.2]} 43...
Rh8 {[%clk 0:01:47.9]} 44. Nd7 {[%clk 0:00:19.7]} 44... Nf3+ {[%clk 0:01:46.5]}
45. Kf2 {[%clk 0:00:19.8]} 45... Nxd4 {[%clk 0:01:46.1]} 46. Ke3 {[%clk
0:00:19.3]} 46... Rh3 {[%clk 0:01:23.3]} 47. Kxd4 {[%clk 0:00:18.9]} 47... Rxg3
{[%clk 0:01:23.7]} 48. Nxf6 {[%clk 0:00:19.8]} 48... Bf7 {[%clk 0:01:21.7]} 49.
Ne4 {[%clk 0:00:19.6]} 49... Rg2 {[%clk 0:01:21.2]} 50. Nd6 {[%clk 0:00:19.3]}
50... Bd5 {[%clk 0:01:21.1]} 51. Ke5 {[%clk 0:00:19.1]} 51... a5 {[%clk
0:01:15.6]} 52. Ra1 {[%clk 0:00:19.3]} 52... Ba2 {[%clk 0:01:13.1]} 53. Ne4
{[%clk 0:00:17.9]} 53... Rc2 {[%clk 0:01:04.7]} 54. Kd6 {[%clk 0:00:17.5]} 54...
Bd5 {[%clk 0:01:01]} 55. Ng3 {[%clk 0:00:17.5]} 55... Rg2 {[%clk 0:00:49.4]} 56.
Nf5+ {[%clk 0:00:17.2]} 56... Kf6 {[%clk 0:00:49.5]} 57. Ne7 {[%clk 0:00:16.6]}
57... Be4 {[%clk 0:00:45.2]} 58. Nxc6 {[%clk 0:00:16.1]} 58... Kf5 {[%clk
0:00:39.7]} 59. Nxa5 {[%clk 0:00:15]} 59... Rg6+ {[%clk 0:00:38.3]} 60. Kc7
{[%clk 0:00:14.5]} 60... Ke5 {[%clk 0:00:38.4]} 61. c6 {[%clk 0:00:14.3]} 61...
Kd5 {[%clk 0:00:32.7]} 62. Rd1+ {[%clk 0:00:13.8]} 62... Kc5 {[%clk 0:00:32.5]}
63. Nb3+ {[%clk 0:00:13]} 63... Kb4 {[%clk 0:00:31.2]} 64. Nd4 {[%clk 0:00:13]}
64... Kc4 {[%clk 0:00:30.1]} 65. Kb6 {[%clk 0:00:12.7]} 65... Rh6 {[%clk
0:00:29.4]} 66. Nc2 {[%clk 0:00:11.5]} 66... Rxc6+ {[%clk 0:00:27.5]} 67. Ka5
{[%clk 0:00:10.2]} 67... Bxc2 {[%clk 0:00:25.5]} 68. Rd8 {[%clk 0:00:08.3]}
68... Be4 {[%clk 0:00:21.7]} 69. Rd2 {[%clk 0:00:06.5]} 69... Rc8 {[%clk
0:00:19.3]} 70. Rd1 {[%clk 0:00:05.8]} 70... Rb8 {[%clk 0:00:16.3]} 71. Rc1+
{[%clk 0:00:05.3]} 71... Kd5 {[%clk 0:00:16.4]} 72. Rd1+ {[%clk 0:00:05]} 72...
Kc5 {[%clk 0:00:13.8]} 73. Rc1+ {[%clk 0:00:05.2]} 73... Kd6 {[%clk 0:00:14.2]}
74. Rd1+ {[%clk 0:00:05.5]} 74... Bd5 {[%clk 0:00:14.7]} 75. Rd2 {[%clk
0:00:05.4]} 75... Kc5 {[%clk 0:00:14.4]} 76. Rc2+ {[%clk 0:00:05.6]} 76... Bc4
{[%clk 0:00:14.9]} 0-1

[Event "*** SCC Grand Prix: Titled Tuesday Blitz"]
[Site "Chess.com"]
[Date "2020.09.08"]
[Round "4"]
[White "Tooweak2slow03"]
[Black "Artyom_ChessMate"]
[Result "1/2-1/2"]
[WhiteElo "2790"]
[BlackElo "2555"]
[TimeControl "180+1"]
[EndTime "10:42:13 PDT"]
[Termination "Game drawn - insufficient material"]

1. e4 {[%clk 0:03:00.9]} 1... c5 {[%clk 0:02:59.2]} 2. Nf3 {[%clk 0:03:01.1]}
2... d6 {[%clk 0:02:59.3]} 3. d4 {[%clk 0:02:58.9]} 3... cxd4 {[%clk 0:03:00.2]}
4. Nxd4 {[%clk 0:02:59.2]} 4... Nf6 {[%clk 0:02:56]} 5. Nc3 {[%clk 0:02:59.2]}
5... g6 {[%clk 0:02:56.4]} 6. Be3 {[%clk 0:02:56.5]} 6... Bg7 {[%clk 0:02:56.6]}
7. f3 {[%clk 0:02:56.7]} 7... O-O {[%clk 0:02:57.5]} 8. Qd2 {[%clk 0:02:56.8]}
8... Nc6 {[%clk 0:02:58.4]} 9. Bc4 {[%clk 0:02:57]} 9... Bd7 {[%clk 0:02:58.5]}
10. h4 {[%clk 0:02:57]} 10... Rc8 {[%clk 0:02:58.7]} 11. Bb3 {[%clk 0:02:56.8]}
11... Ne5 {[%clk 0:02:59]} 12. O-O-O {[%clk 0:02:56.2]} 12... Nc4 {[%clk
0:02:59.1]} 13. Bxc4 {[%clk 0:02:56]} 13... Rxc4 {[%clk 0:03:00]} 14. g4 {[%clk
0:02:55.2]} 14... b5 {[%clk 0:02:39.7]} 15. h5 {[%clk 0:02:51.4]} 15... b4
{[%clk 0:02:39.9]} 16. Nce2 {[%clk 0:02:47.6]} 16... Qa5 {[%clk 0:02:37.3]} 17.
Kb1 {[%clk 0:02:46.8]} 17... Rfc8 {[%clk 0:02:36.4]} 18. hxg6 {[%clk 0:02:43.1]}
18... fxg6 {[%clk 0:02:37.3]} 19. Bh6 {[%clk 0:02:18.2]} 19... Bh8 {[%clk
0:02:36.5]} 20. Rc1 {[%clk 0:02:13.7]} 20... R4c7 {[%clk 0:01:58]} 21. Nb3
{[%clk 0:02:03.4]} 21... Qe5 {[%clk 0:01:51.8]} 22. Bf4 {[%clk 0:01:57.4]} 22...
Nxe4 {[%clk 0:01:48.9]} 23. Bxe5 {[%clk 0:01:04.9]} 23... Nxd2+ {[%clk
0:01:46.7]} 24. Nxd2 {[%clk 0:01:05.8]} 24... Bxe5 {[%clk 0:01:47.2]} 25. Rhg1
{[%clk 0:01:01.7]} 25... a5 {[%clk 0:01:44]} 26. c4 {[%clk 0:00:58.4]} 26...
bxc3 {[%clk 0:01:41.5]} 27. Nxc3 {[%clk 0:00:55.6]} 27... Bxc3 {[%clk
0:01:41.5]} 28. Rxc3 {[%clk 0:00:54.2]} 28... Rxc3 {[%clk 0:01:42.4]} 29. bxc3
{[%clk 0:00:55.1]} 29... Rxc3 {[%clk 0:01:43.3]} 30. Re1 {[%clk 0:00:52]} 30...
e5 {[%clk 0:01:26.2]} 31. Kb2 {[%clk 0:00:49]} 31... Rc6 {[%clk 0:01:21.7]} 32.
Ne4 {[%clk 0:00:43.7]} 32... Kg7 {[%clk 0:01:20.5]} 33. Rd1 {[%clk 0:00:42.5]}
33... Rb6+ {[%clk 0:01:12.7]} 34. Ka3 {[%clk 0:00:41.4]} 34... Be6 {[%clk
0:01:06.2]} 35. Nxd6 {[%clk 0:00:38.9]} 35... h5 {[%clk 0:01:01.5]} 36. gxh5
{[%clk 0:00:36.9]} 36... gxh5 {[%clk 0:01:02.4]} 37. Ne4 {[%clk 0:00:35.7]}
37... h4 {[%clk 0:01:01.1]} 38. Rg1+ {[%clk 0:00:34.2]} 38... Kf8 {[%clk
0:01:00.1]} 39. Rh1 {[%clk 0:00:32.8]} 39... h3 {[%clk 0:00:32.5]} 40. Ng5
{[%clk 0:00:30.8]} 40... Bf5 {[%clk 0:00:27.3]} 41. Nxh3 {[%clk 0:00:28.2]}
41... Rd6 {[%clk 0:00:24.8]} 42. Nf2 {[%clk 0:00:23.4]} 42... Rd2 {[%clk
0:00:23.2]} 43. Ne4 {[%clk 0:00:20.5]} 43... Rd3+ {[%clk 0:00:17.7]} 44. Ka4
{[%clk 0:00:20.1]} 44... Rxf3 {[%clk 0:00:18]} 45. Nd6 {[%clk 0:00:18.1]} 45...
Be6 {[%clk 0:00:15.6]} 46. Kxa5 {[%clk 0:00:16.9]} 46... Bxa2 {[%clk 0:00:15.8]}
47. Rh5 {[%clk 0:00:15]} 47... Re3 {[%clk 0:00:09.2]} 48. Nf5 {[%clk 0:00:13.7]}
48... Re1 {[%clk 0:00:08.3]} 49. Kb4 {[%clk 0:00:13.9]} 49... e4 {[%clk
0:00:07.9]} 50. Rh3 {[%clk 0:00:10.1]} 50... Kf7 {[%clk 0:00:06.8]} 51. Re3
{[%clk 0:00:08.5]} 51... Rxe3 {[%clk 0:00:02.4]} 52. Nxe3 {[%clk 0:00:09.4]}
52... Ke6 {[%clk 0:00:03.3]} 53. Kc3 {[%clk 0:00:09.3]} 53... Ke5 {[%clk
0:00:03.6]} 54. Kd2 {[%clk 0:00:10.2]} 54... Kf4 {[%clk 0:00:03.8]} 55. Nd1
{[%clk 0:00:08.3]} 55... Bd5 {[%clk 0:00:03.5]} 56. Ne3 {[%clk 0:00:08.1]} 56...
Bc6 {[%clk 0:00:03.8]} 57. Nd1 {[%clk 0:00:08.2]} 57... Kf3 {[%clk 0:00:04.2]}
58. Ne3 {[%clk 0:00:09.1]} 58... Ba4 {[%clk 0:00:03.8]} 59. Nc4 {[%clk
0:00:09.1]} 59... Bb3 {[%clk 0:00:04.1]} 60. Ne3 {[%clk 0:00:10]} 60... Kf2
{[%clk 0:00:04]} 61. Nf5 {[%clk 0:00:10]} 61... Be6 {[%clk 0:00:02.8]} 62. Ne3
{[%clk 0:00:10.9]} 62... Bd7 {[%clk 0:00:02.8]} 63. Nd1+ {[%clk 0:00:11]} 63...
Kf3 {[%clk 0:00:02.8]} 64. Ne3 {[%clk 0:00:11.9]} 64... Be6 {[%clk 0:00:02.3]}
65. Nd1 {[%clk 0:00:12.1]} 65... Bc4 {[%clk 0:00:02.3]} 66. Ne3 {[%clk 0:00:13]}
66... Bb3 {[%clk 0:00:03]} 67. Nf5 {[%clk 0:00:12.8]} 67... Be6 {[%clk
0:00:03.1]} 68. Ne3 {[%clk 0:00:13.7]} 68... Bd7 {[%clk 0:00:04]} 69. Nd5 {[%clk
0:00:13.4]} 69... Kf2 {[%clk 0:00:03.5]} 70. Ne3 {[%clk 0:00:13.3]} 70... Ba4
{[%clk 0:00:04.1]} 71. Nc4 {[%clk 0:00:12.9]} 71... Bb3 {[%clk 0:00:03.5]} 72.
Ne3 {[%clk 0:00:13.8]} 72... Be6 {[%clk 0:00:03.5]} 73. Nd1+ {[%clk 0:00:13.6]}
73... Kf3 {[%clk 0:00:03.4]} 74. Ne3 {[%clk 0:00:14.5]} 74... Bf7 {[%clk
0:00:03.7]} 75. Nf5 {[%clk 0:00:13.9]} 75... Bg6 {[%clk 0:00:03.8]} 76. Ne3
{[%clk 0:00:11.6]} 76... Bf7 {[%clk 0:00:04.7]} 77. Nf5 {[%clk 0:00:11.5]} 77...
Kf4 {[%clk 0:00:05.6]} 78. Ne3 {[%clk 0:00:11.5]} 78... Ke5 {[%clk 0:00:06.5]}
79. Nd1 {[%clk 0:00:11]} 79... Kd4 {[%clk 0:00:07.4]} 80. Ne3 {[%clk 0:00:11.9]}
80... Be6 {[%clk 0:00:07.7]} 81. Nd1 {[%clk 0:00:12]} 81... Bg4 {[%clk
0:00:07.5]} 82. Ne3 {[%clk 0:00:12.9]} 82... Bf3 {[%clk 0:00:08.4]} 83. Nf1
{[%clk 0:00:13.1]} 83... Ke5 {[%clk 0:00:09.3]} 84. Ne3 {[%clk 0:00:12.4]} 84...
Kf4 {[%clk 0:00:10.2]} 85. Nd5+ {[%clk 0:00:12.5]} 85... Kg3 {[%clk 0:00:10.4]}
86. Ne3 {[%clk 0:00:13.4]} 86... Kf2 {[%clk 0:00:11.3]} 87. Nf5 {[%clk
0:00:13.5]} 87... Bg2 {[%clk 0:00:12.2]} 88. Ne3 {[%clk 0:00:14.4]} 88... Bh3
{[%clk 0:00:12.7]} 89. Nd5 {[%clk 0:00:14.4]} 89... Bg4 {[%clk 0:00:12.3]} 90.
Ne3 {[%clk 0:00:15.3]} 90... Bf3 {[%clk 0:00:12.8]} 91. Nf5 {[%clk 0:00:15]}
91... Bg2 {[%clk 0:00:11.3]} 92. Ne3 {[%clk 0:00:15.9]} 92... Kf3 {[%clk
0:00:11.7]} 93. Nxg2 {[%clk 0:00:14.3]} 93... Kxg2 {[%clk 0:00:09.5]} 94. Ke3
{[%clk 0:00:15.2]} 94... Kh1 {[%clk 0:00:10.4]} 95. Kxe4 {[%clk 0:00:16.1]}
1/2-1/2

[Event "*** SCC Grand Prix: Titled Tuesday Blitz"]
[Site "Chess.com"]
[Date "2020.09.08"]
[Round "4"]
[White "Reader777"]
[Black "Guenplen"]
[Result "0-1"]
[WhiteElo "2660"]
[BlackElo "2903"]
[TimeControl "180+1"]
[EndTime "10:42:28 PDT"]
[Termination "Guenplen won by resignation"]

1. d4 {[%clk 0:03:00.9]} 1... d5 {[%clk 0:02:59.5]} 2. c4 {[%clk 0:03:01.1]}
2... e6 {[%clk 0:02:59.7]} 3. Nc3 {[%clk 0:03:00.7]} 3... a6 {[%clk 0:02:59.9]}
4. cxd5 {[%clk 0:03:00.6]} 4... exd5 {[%clk 0:03:00.8]} 5. Bf4 {[%clk
0:03:00.5]} 5... Nf6 {[%clk 0:02:58]} 6. e3 {[%clk 0:03:00.6]} 6... c5 {[%clk
0:02:57.7]} 7. Nf3 {[%clk 0:02:58.3]} 7... c4 {[%clk 0:02:57.2]} 8. Be2 {[%clk
0:02:55.3]} 8... b5 {[%clk 0:02:56.9]} 9. a3 {[%clk 0:02:53.7]} 9... Be7 {[%clk
0:02:56.5]} 10. O-O {[%clk 0:02:52.8]} 10... O-O {[%clk 0:02:55.5]} 11. Ne5
{[%clk 0:02:50.9]} 11... Bb7 {[%clk 0:02:55.4]} 12. b3 {[%clk 0:02:47.5]} 12...
Nc6 {[%clk 0:02:42.3]} 13. Nxc6 {[%clk 0:02:40.8]} 13... Bxc6 {[%clk 0:02:42.1]}
14. Bf3 {[%clk 0:02:41.1]} 14... Rc8 {[%clk 0:02:41.4]} 15. Be5 {[%clk
0:02:35.8]} 15... Ba8 {[%clk 0:02:22.7]} 16. Ne2 {[%clk 0:02:08.6]} 16... Nd7
{[%clk 0:02:19.1]} 17. Bg3 {[%clk 0:02:06.9]} 17... Nb6 {[%clk 0:02:06.8]} 18.
Qb1 {[%clk 0:01:29.1]} 18... Bd6 {[%clk 0:01:59]} 19. Rc1 {[%clk 0:01:27.3]}
19... g6 {[%clk 0:01:51.5]} 20. Bxd6 {[%clk 0:01:12.1]} 20... Qxd6 {[%clk
0:01:52.4]} 21. b4 {[%clk 0:01:12.6]} 21... Na4 {[%clk 0:01:44.2]} 22. Nc3
{[%clk 0:01:12]} 22... Nxc3 {[%clk 0:01:44.4]} 23. Rxc3 {[%clk 0:01:12.6]} 23...
Bc6 {[%clk 0:01:45.1]} 24. Qb2 {[%clk 0:01:09.2]} 24... Ra8 {[%clk 0:01:40.6]}
25. Rb1 {[%clk 0:00:50.8]} 25... a5 {[%clk 0:01:36.1]} 26. g3 {[%clk 0:00:46.7]}
26... axb4 {[%clk 0:01:30.2]} 27. axb4 {[%clk 0:00:47.3]} 27... Ra4 {[%clk
0:01:25.9]} 28. Ra3 {[%clk 0:00:45.7]} 28... Rfa8 {[%clk 0:01:24.5]} 29. Rxa4
{[%clk 0:00:45.7]} 29... Rxa4 {[%clk 0:01:25.4]} 30. Kg2 {[%clk 0:00:44.1]}
30... f5 {[%clk 0:01:17.1]} 31. h4 {[%clk 0:00:41.8]} 31... Kg7 {[%clk
0:01:14.9]} 32. h5 {[%clk 0:00:33.8]} 32... g5 {[%clk 0:01:11.3]} 33. Bd1 {[%clk
0:00:25.6]} 33... Ra7 {[%clk 0:01:04.8]} 34. Ra1 {[%clk 0:00:25.6]} 34... Qc7
{[%clk 0:00:55.6]} 35. Bc2 {[%clk 0:00:18.1]} 35... Kf6 {[%clk 0:00:47.7]} 36.
Qb1 {[%clk 0:00:17]} 36... Bd7 {[%clk 0:00:46.3]} 37. Qb2 {[%clk 0:00:13.6]}
37... h6 {[%clk 0:00:40.6]} 38. Qc3 {[%clk 0:00:12.3]} 38... Qb7 {[%clk
0:00:35.4]} 39. Qb2 {[%clk 0:00:11.9]} 39... Ra6 {[%clk 0:00:34.5]} 40. Ra3
{[%clk 0:00:09.1]} 40... Qa7 {[%clk 0:00:33.9]} 41. Rxa6+ {[%clk 0:00:09.6]}
41... Qxa6 {[%clk 0:00:34.8]} 42. Kg1 {[%clk 0:00:08.8]} 42... Be8 {[%clk
0:00:32]} 43. Bd1 {[%clk 0:00:08.1]} 43... g4 {[%clk 0:00:28]} 44. Kg2 {[%clk
0:00:07.8]} 44... Bxh5 {[%clk 0:00:27.7]} 45. Qc1 {[%clk 0:00:08]} 45... Kg7
{[%clk 0:00:20.1]} 46. Qd2 {[%clk 0:00:06.7]} 46... Bf7 {[%clk 0:00:19.4]} 47.
Bc2 {[%clk 0:00:06.1]} 47... Qa2 {[%clk 0:00:17.9]} 48. Qc3 {[%clk 0:00:06]}
48... Be6 {[%clk 0:00:18.2]} 49. Bd1 {[%clk 0:00:04.9]} 49... Kf7 {[%clk
0:00:16.4]} 50. Qe1 {[%clk 0:00:01.9]} 50... h5 {[%clk 0:00:15]} 51. Be2 {[%clk
0:00:02.6]} 51... Qb2 {[%clk 0:00:14]} 52. Bf1 {[%clk 0:00:02.8]} 52... c3
{[%clk 0:00:13.5]} 53. Bd3 {[%clk 0:00:02.2]} 53... c2 {[%clk 0:00:13.8]} 54.
Bxc2 {[%clk 0:00:02.1]} 54... Qxc2 {[%clk 0:00:14.7]} 55. Qa1 {[%clk 0:00:02.7]}
55... Qe4+ {[%clk 0:00:14.8]} 56. Kg1 {[%clk 0:00:02.4]} 56... Bd7 {[%clk
0:00:15.1]} 57. Qa7 {[%clk 0:00:02.8]} 57... Qe7 {[%clk 0:00:15.1]} 58. Qb6
{[%clk 0:00:02.8]} 58... Qe6 {[%clk 0:00:01.5]} 59. Qc7 {[%clk 0:00:02.8]} 59...
Qc6 {[%clk 0:00:01.8]} 60. Qf4 {[%clk 0:00:03.2]} 60... Qe6 {[%clk 0:00:02.7]}
61. Kg2 {[%clk 0:00:03.8]} 61... Ke8 {[%clk 0:00:03.4]} 62. Qg5 {[%clk
0:00:04.5]} 62... Qe7 {[%clk 0:00:03.6]} 63. Qf4 {[%clk 0:00:04.9]} 63... Qf7
{[%clk 0:00:04.5]} 64. Qb8+ {[%clk 0:00:04.9]} 64... Ke7 {[%clk 0:00:04.8]} 65.
Qe5+ {[%clk 0:00:05.5]} 65... Qe6 {[%clk 0:00:05.7]} 66. Qg7+ {[%clk 0:00:05.9]}
66... Kd6 {[%clk 0:00:06.6]} 67. Qf8+ {[%clk 0:00:05.9]} 67... Kc6 {[%clk
0:00:06.9]} 68. Qc5+ {[%clk 0:00:06.4]} 68... Kb7 {[%clk 0:00:07.8]} 69. Kg1
{[%clk 0:00:06.7]} 69... Qc6 {[%clk 0:00:07.9]} 70. Qe7 {[%clk 0:00:06.9]} 70...
Qe6 {[%clk 0:00:07.6]} 71. Qc5 {[%clk 0:00:06.7]} 71... Bc6 {[%clk 0:00:06.8]}
72. Kg2 {[%clk 0:00:06.5]} 72... Qd7 {[%clk 0:00:07.1]} 73. Kg1 {[%clk
0:00:06.1]} 73... Qc7 {[%clk 0:00:07.3]} 74. Qf8 {[%clk 0:00:06]} 74... Bd7
{[%clk 0:00:07.4]} 75. Qf7 {[%clk 0:00:04.8]} 75... Qc1+ {[%clk 0:00:07]} 76.
Kg2 {[%clk 0:00:05]} 76... Qc6 {[%clk 0:00:07.6]} 77. Qxh5 {[%clk 0:00:05.2]}
77... Qe6 {[%clk 0:00:07.7]} 78. Qh8 {[%clk 0:00:05.1]} 78... Qd6 {[%clk
0:00:07.5]} 79. Qh1 {[%clk 0:00:04.6]} 79... Qxb4 {[%clk 0:00:07.2]} 80. Qh7
{[%clk 0:00:05.2]} 80... Qd6 {[%clk 0:00:07.3]} 81. Qh1 {[%clk 0:00:05.4]} 81...
b4 {[%clk 0:00:07.6]} 82. Qb1 {[%clk 0:00:06.1]} 82... Qb6 {[%clk 0:00:07.1]}
83. Qc2 {[%clk 0:00:05.8]} 83... Qb5 {[%clk 0:00:07.2]} 84. Qb2 {[%clk
0:00:06.6]} 84... b3 {[%clk 0:00:07.4]} 85. Kg1 {[%clk 0:00:06.5]} 85... Qb4
{[%clk 0:00:07.6]} 86. Kg2 {[%clk 0:00:06]} 86... Qc4 {[%clk 0:00:07.9]} 87. Qa3
{[%clk 0:00:06.3]} 87... Bc6 {[%clk 0:00:07.4]} 88. Qe7+ {[%clk 0:00:06.2]}
88... Kb6 {[%clk 0:00:07.8]} 89. Qd8+ {[%clk 0:00:06.4]} 89... Kb5 {[%clk
0:00:08.1]} 90. Qb8+ {[%clk 0:00:06.9]} 90... Ka4 {[%clk 0:00:08.6]} 91. Qb6
{[%clk 0:00:07.1]} 91... Ka3 {[%clk 0:00:08.4]} 92. Qa5+ {[%clk 0:00:07.1]}
92... Ba4 {[%clk 0:00:08.3]} 93. Qd2 {[%clk 0:00:06.9]} 93... b2 {[%clk
0:00:08.7]} 94. Qe1 {[%clk 0:00:06.5]} 94... Ka2 {[%clk 0:00:08.8]} 0-1

[Event "*** SCC Grand Prix: Titled Tuesday Blitz"]
[Site "Chess.com"]
[Date "2020.09.08"]
[Round "5"]
[White "joshuaguo"]
[Black "szefru"]
[Result "1-0"]
[WhiteElo "2208"]
[BlackElo "2051"]
[TimeControl "180+1"]
[EndTime "10:52:13 PDT"]
[Termination "joshuaguo won by resignation"]

1. e4 {[%clk 0:02:59.2]} 1... Nf6 {[%clk 0:02:58.8]} 2. e5 {[%clk 0:02:58.7]}
2... Nd5 {[%clk 0:02:58.4]} 3. Nc3 {[%clk 0:02:59.3]} 3... Nxc3 {[%clk
0:02:58.4]} 4. dxc3 {[%clk 0:03:00.2]} 4... g6 {[%clk 0:02:58.8]} 5. Bf4 {[%clk
0:02:58.2]} 5... Bg7 {[%clk 0:02:58.8]} 6. Qd2 {[%clk 0:02:56.5]} 6... O-O
{[%clk 0:02:58.8]} 7. h4 {[%clk 0:02:49.1]} 7... h5 {[%clk 0:02:56.5]} 8. Bh6
{[%clk 0:02:44]} 8... d6 {[%clk 0:02:56.2]} 9. Bxg7 {[%clk 0:02:43.4]} 9... Kxg7
{[%clk 0:02:55.7]} 10. O-O-O {[%clk 0:02:34.2]} 10... Nc6 {[%clk 0:02:54.6]} 11.
exd6 {[%clk 0:02:19.7]} 11... cxd6 {[%clk 0:02:54]} 12. f3 {[%clk 0:01:48.3]}
12... Be6 {[%clk 0:02:51.3]} 13. a3 {[%clk 0:01:34.1]} 13... Ne5 {[%clk
0:02:38.9]} 14. Nh3 {[%clk 0:01:25.5]} 14... Nc4 {[%clk 0:02:31.2]} 15. Bxc4
{[%clk 0:01:24.5]} 15... Bxc4 {[%clk 0:02:30.4]} 16. Qd4+ {[%clk 0:01:25]} 1-0

[Event "*** SCC Grand Prix: Titled Tuesday Blitz"]
[Site "Chess.com"]
[Date "2020.09.08"]
[Round "5"]
[White "WilliamAlfaroCaracas"]
[Black "diamonds13"]
[Result "0-1"]
[WhiteElo "2093"]
[BlackElo "2285"]
[TimeControl "180+1"]
[EndTime "10:52:15 PDT"]
[Termination "diamonds13 won by resignation"]

1. e4 {[%clk 0:03:00.9]} 1... c5 {[%clk 0:02:59.9]} 2. d4 {[%clk 0:03:00.4]}
2... cxd4 {[%clk 0:02:59.1]} 3. c3 {[%clk 0:03:00.6]} 3... d3 {[%clk 0:02:59.4]}
4. Bxd3 {[%clk 0:02:59.7]} 4... Nc6 {[%clk 0:02:59.6]} 5. Nf3 {[%clk 0:03:00.3]}
5... g6 {[%clk 0:02:59.6]} 6. O-O {[%clk 0:02:59.6]} 6... Bg7 {[%clk 0:03:00]}
7. Bg5 {[%clk 0:03:00.2]} 7... h6 {[%clk 0:02:59.4]} 8. Bh4 {[%clk 0:02:58.5]}
8... Nf6 {[%clk 0:02:56.6]} 9. Nbd2 {[%clk 0:02:58.3]} 9... d6 {[%clk
0:02:56.6]} 10. Nc4 {[%clk 0:02:56.8]} 10... Be6 {[%clk 0:02:55.4]} 11. Qe2
{[%clk 0:02:48.7]} 11... O-O {[%clk 0:02:55.3]} 12. Rad1 {[%clk 0:02:43.2]}
12... b5 {[%clk 0:02:55.3]} 13. Ne3 {[%clk 0:02:05.2]} 13... a6 {[%clk
0:02:52.6]} 14. e5 {[%clk 0:02:02.6]} 14... Ne8 {[%clk 0:02:52]} 15. Be4 {[%clk
0:01:56.5]} 15... Qc8 {[%clk 0:02:48.1]} 16. exd6 {[%clk 0:01:53.4]} 16... g5
{[%clk 0:02:31.9]} 17. Bxc6 {[%clk 0:01:45.5]} 17... Qxc6 {[%clk 0:02:31.8]} 18.
dxe7 {[%clk 0:01:45.6]} 18... gxh4 {[%clk 0:02:31.4]} 19. exf8=Q+ {[%clk
0:01:44.3]} 19... Bxf8 {[%clk 0:02:31.3]} 20. Nxh4 {[%clk 0:01:43.3]} 20... Ng7
{[%clk 0:02:31.2]} 21. Qh5 {[%clk 0:01:35.5]} 21... Nxh5 {[%clk 0:02:30.2]} 0-1

[Event "*** SCC Grand Prix: Titled Tuesday Blitz"]
[Site "Chess.com"]
[Date "2020.09.08"]
[Round "5"]
[White "Susal_De_Silva"]
[Black "anon102030"]
[Result "1-0"]
[WhiteElo "2514"]
[BlackElo "2711"]
[TimeControl "180+1"]
[EndTime "10:52:34 PDT"]
[Termination "Susal_De_Silva won by resignation"]

1. e4 {[%clk 0:03:00.9]} 1... e5 {[%clk 0:02:57.3]} 2. Nf3 {[%clk 0:03:00.6]}
2... Nc6 {[%clk 0:02:57.2]} 3. Bc4 {[%clk 0:03:00]} 3... Bc5 {[%clk 0:02:56.4]}
4. O-O {[%clk 0:02:59.4]} 4... Nf6 {[%clk 0:02:56.4]} 5. d3 {[%clk 0:03:00]}
5... d6 {[%clk 0:02:55.7]} 6. c3 {[%clk 0:03:00.1]} 6... Bb6 {[%clk 0:02:55.2]}
7. h3 {[%clk 0:02:59.2]} 7... Be6 {[%clk 0:02:53.9]} 8. Bb3 {[%clk 0:02:59.4]}
8... h6 {[%clk 0:02:51.2]} 9. Re1 {[%clk 0:02:58.3]} 9... O-O {[%clk 0:02:51.6]}
10. Nbd2 {[%clk 0:02:58.4]} 10... Re8 {[%clk 0:02:44]} 11. Nf1 {[%clk
0:02:57.5]} 11... d5 {[%clk 0:02:42.9]} 12. Ng3 {[%clk 0:02:54.7]} 12... Qd7
{[%clk 0:02:42.4]} 13. Qe2 {[%clk 0:02:50.2]} 13... Rad8 {[%clk 0:02:36.1]} 14.
Be3 {[%clk 0:02:49.6]} 14... d4 {[%clk 0:02:30.5]} 15. cxd4 {[%clk 0:02:45.6]}
15... Bxb3 {[%clk 0:02:24.9]} 16. dxe5 {[%clk 0:02:17]} 16... Nxe5 {[%clk
0:02:20.3]} 17. Nxe5 {[%clk 0:02:16.2]} 17... Rxe5 {[%clk 0:02:20.4]} 18. Bxb6
{[%clk 0:02:16.3]} 18... axb6 {[%clk 0:02:19.7]} 19. axb3 {[%clk 0:02:16.5]}
19... Qxd3 {[%clk 0:02:19.8]} 20. Rad1 {[%clk 0:02:14.1]} 1-0